Cogmind - Beta 9.6 @@@ ROGUE MODE // 2020.06.11 @ 10:01:54 // AFD2019/Pay2Buy Player: Rod99 Result: Destroyed by S-27 Virus with Autogun Performance ------------- Evolutions (4) 2000 Regions Visited (6) 1200 Robots Destroyed (10) 50 Value Destroyed (175) 175 Prototype IDs (0) 0 Alien Tech Used (0) 0 Bonus (180) 180 TOTAL SCORE: 3605 Bonus ------- Follower Combat Kills 180 Cogmind --------- Core Integrity 0/850 Matter 300/300 Energy 80/100 System Corruption 4% Temperature Cool (0) Movement Core (50) Location -6/Factory Parts ------- > --- POWER (2) -------- (None) > --- PROPULSION (3) --- (None) > --- UTILITY (8) ------ (None) > --- WEAPON (2) ------- (None) > --- INVENTORY (10) --- (None) Peak State ------------ > --- POWER ------------ Light Ion Engine > --- PROPULSION ------- VTOL Module VTOL Module > --- UTILITY ---------- High-capacity Matter Pod > --- WEAPON ----------- Rocket Launcher Rocket Launcher > --- INVENTORY -------- (None) [Rating: 10] Favorites ----------- Power Light Ion Engine Engine Light Ion Engine Propulsion VTOL Module Flight Unit VTOL Module Utility High-capacity Matter Pod Device Weight Redist. System Storage High-capacity Matter Pod Weapon Rocket Launcher Launcher Rocket Launcher Build | -11 -10 -9 -9 -8 -7 -6 ------- Run | Scr Mat Mat Min Mat Fac Fac Slots Evolved 8 | . . 2 . 2 2 2 Power 1 | . . . . . 1 . Propulsion 1 | . . . . . 1 . Utility 6 | . . 2 . 2 . 2 Weapon . | . . . . . . . Parts Attached 1 | . . . . . 1 . Power . | . . . . . . . Engine . | . . . . . . . Core . | . . . . . . . Reactor . | . . . . . . . Propulsion 1 | . . . . . 1 . Treads . | . . . . . . . Leg . | . . . . . . . Wheel . | . . . . . . . Hover . | . . . . . . . Flight 1 | . . . . . 1 . Utility . | . . . . . . . Device . | . . . . . . . Storage . | . . . . . . . Processor . | . . . . . . . Hackware . | . . . . . . . Protection . | . . . . . . . Artifact . | . . . . . . . Weapon . | . . . . . . . Energy Gun . | . . . . . . . Energy Cannon . | . . . . . . . Ballistic Gun . | . . . . . . . Ballistic Cannon . | . . . . . . . Launcher . | . . . . . . . Special Weapon . | . . . . . . . Impact Weapon . | . . . . . . . Slashing Weapon . | . . . . . . . Piercing Weapon . | . . . . . . . Special Melee Weapon . | . . . . . . . Unidentified Prototypes . | . . . . . . . Parts Lost 8 | . 3 . 1 . 2 2 Power 1 | . . . 1 . . . Propulsion 3 | . 1 . . . 1 1 Utility 2 | . . . . . 1 1 Weapon 2 | . 2 . . . . . Highest Loss Streak 3 | . 3 . 1 . 2 2 Average Slot Usage (%) 33 | . 75 44 35 27 12 7 Engine 4 | . 14 11 2 . . . Flight 10 | . 25 11 11 9 3 2 Device 2 | . 1 11 11 9 1 1 Storage 7 | . 8 11 11 9 7 3 Launcher 7 | . 24 . . . . . Naked Turns 51 | . . . . . . 51 Heaviest Build 15 | 8 15 7 7 4 4 7 Greatest Support 11 | 10 11 11 11 5 8 8 Greatest Overweight (x) 2 | . 2 . . . 1 2 Average Overweight (x) . | . . . . . . . Largest Inventory Capacity 10 | 10 10 10 10 10 10 10 Average Capacity 10 | 10 10 10 10 10 10 10 Most Carried 1 | . . . . . 1 . Average Carried . | . . . . . . . Final Capacity 10 | 10 10 10 10 10 10 10 Final Carried . | . . . . . . . Class Distribution -------------------- 100% | Mutant Dominant Class ---------------- Mutant | -10/Materials Mutant | -9/Materials Mutant | -9/Mines Mutant | -8/Materials Mutant | -7/Factory Mutant | -6/Factory Resources | -11 -10 -9 -9 -8 -7 -6 ----------- Run | Scr Mat Mat Min Mat Fac Fac Matter Collected 376 | . 89 . . . 287 . Remotely . | . . . . . . . Salvage Created 139 | . 79 . . . . 60 Parts . | . . . . . . . Haulers Intercepted 1 | . 1 . . . . . Recyclers Shooed . | . . . . . . . Parts Field Recycled . | . . . . . . . Retrieved Matter . | . . . . . . . Parts Self-Destructed . | . . . . . . . Prevented . | . . . . . . . Kills | -11 -10 -9 -9 -8 -7 -6 ------- Run | Scr Mat Mat Min Mat Fac Fac Combat Hostiles Destroyed 3 | . 1 . . . . 2 Melee 2 | . . . . . . 2 AOE 1 | . 1 . . . . . Classes Destroyed 7 | . 6 . . . . 1 Worker 2 | . 2 . . . . . Builder 1 | . 1 . . . . . Hauler 1 | . 1 . . . . . Operator 1 | . 1 . . . . . Watcher 2 | . 2 . . . . . Swarmer 2 | . . . . . . 2 Grunt 1 | . 1 . . . . . Best Kill Streak 3 | . 3 . . . . 2 Combat Bots Only 2 | . 1 . . . . 2 Max Kills in Single Turn 2 | . 2 . . . . 1 Gunslinging . | . . . . . . . Exploded 1 | . 1 . . . . . Melee 1 | . . . . . . 1 Uniques/NPCs Destroyed . | . . . . . . . Combat | -11 -10 -9 -9 -8 -7 -6 -------- Run | Scr Mat Mat Min Mat Fac Fac Damage Taken 1633 | . 474 . 61 . 222 876 Core 1282 | . 222 . 47 . 162 851 Absorbed by Shields 28 | . . . . . 28 . Core Remaining (%) 75 | 100 11 . 88 100 76 . Volleys Fired 17 | . 17 . . . . . Largest 2 | . 2 . . . . . Hottest 66 | . 66 . . . . . Shots Fired 22 | . 22 . . . . . Gun . | . . . . . . . Cannon . | . . . . . . . Launcher 22 | . 22 . . . . . Special . | . . . . . . . Kinetic . | . . . . . . . Thermal . | . . . . . . . Explosive 22 | . 22 . . . . . Electromagnetic . | . . . . . . . Robot Hit Streak 2 | . 2 . . . . . Robot Miss Streak 5 | . 5 . . . . . Penetration Max . | . . . . . . . Secondary Targets . | . . . . . . . Shots Hit Robots 6 | . 6 . . . . . Core Hits 34 | . 15 . . . . 19 Critical Hits . | . . . . . . . Critical Kills . | . . . . . . . Critical Parts Destroyed . | . . . . . . . Melee Attacks . | . . . . . . . Impact . | . . . . . . . Slashing . | . . . . . . . Piercing . | . . . . . . . Sneak Attacks . | . . . . . . . Combat Hostiles . | . . . . . . . Follow-up Attacks . | . . . . . . . Damage Inflicted 1024 | . 939 . . . . 85 Guns . | . . . . . . . Cannons . | . . . . . . . Explosions 886 | . 886 . . . . . Melee . | . . . . . . . Ramming 138 | . 53 . . . . 85 Kinetic . | . . . . . . . Thermal . | . . . . . . . Explosive 886 | . 886 . . . . . Electromagnetic . | . . . . . . . Impact . | . . . . . . . Slashing . | . . . . . . . Piercing . | . . . . . . . Highest Corruption 4 | . 2 . . . . 4 Average Corruption 2 | . 2 . . . . 2 Corruption Purged . | . . . . . . . Overload Shots . | . . . . . . . Overflow Damage 76 | . 76 . . . . . Projectiles . | . . . . . . . Explosions 76 | . 76 . . . . . Melee . | . . . . . . . Knockbacks 1 | . 1 . . . . . Impact 1 | . 1 . . . . . Kinetic . | . . . . . . . Secondary . | . . . . . . . Self-Inflicted Damage 245 | . 209 . . . . 36 Shots 7 | . 7 . . . . . Rammed 46 | . 13 . . . . 33 Targets Rammed 46 | . 13 . . . . 33 Kicked . | . . . . . . . Crushed . | . . . . . . . Highest Temperature 24 | . 24 . . . . . Average Temperature 10 | . 10 . . . . . Received Heat Transfer 307 | . 150 . 36 . 40 81 Siege Activations . | . . . . . . . Robots Corrupted . | . . . . . . . Combat Hostiles . | . . . . . . . Parts Fried . | . . . . . . . Impact Corruptions 1 | . 1 . . . . . Robots Melted . | . . . . . . . Combat Hostiles . | . . . . . . . Parts Melted . | . . . . . . . Heat Transferred . | . . . . . . . Parts Sabotaged . | . . . . . . . Parts Stolen . | . . . . . . . Parts Stripped . | . . . . . . . Power Chain Reactions . | . . . . . . . Missiles Intercepted . | . . . . . . . Alert | -11 -10 -9 -9 -8 -7 -6 ------- Run | Scr Mat Mat Min Mat Fac Fac Peak Influence 163 | . 126 93 36 23 163 129 Average Influence 70 | . 60 73 29 21 76 93 Maximum Alert Level . | . . . . . . . Low Security (%) 100 | 100 100 100 100 100 100 100 Level 1 . | . . . . . . . Level 2 . | . . . . . . . Level 3 . | . . . . . . . Level 4 . | . . . . . . . Level 5 . | . . . . . . . High Security . | . . . . . . . Max Security . | . . . . . . . Squads Dispatched 6 | . 2 2 . . 1 1 Investigation 3 | . 2 . . . 1 . Extermination . | . . . . . . . Reinforcement 3 | . . 2 . . . 1 Assault . | . . . . . . . Garrison . | . . . . . . . Intercept . | . . . . . . . Construction Impeded 1 | . . . . . . 1 Haulers Reinforced . | . . . . . . . Stealth | -11 -10 -9 -9 -8 -7 -6 --------- Run | Scr Mat Mat Min Mat Fac Fac Distress Signals 2 | . 1 1 . . . . Communications Jammed . | . . . . . . . Distress Signals . | . . . . . . . Times Spotted 33 | . 6 5 4 . 10 8 Peak Tracking Total 7 | . 4 4 5 . 3 7 Tactical Retreats 5 | . . . . . 3 2 Traps | -11 -10 -9 -9 -8 -7 -6 ------- Run | Scr Mat Mat Min Mat Fac Fac Traps Triggered 3 | . . . . . 3 . Indirectly . | . . . . . . . Trap Hack Attempts . | . . . . . . . Triggered . | . . . . . . . Disarmed . | . . . . . . . Reprogrammed 6 | . 6 . . . . . Reused 1 | . 1 . . . . . Traps Extracted . | . . . . . . . Installed . | . . . . . . . Triggered 1 | . 1 . . . . . Machines | -11 -10 -9 -9 -8 -7 -6 ---------- Run | Scr Mat Mat Min Mat Fac Fac Machines Disabled 3 | . 3 . . . . . Max in Single Turn 2 | . 2 . . . . . Garrison Access 1 | . . . . 1 . . Machines Sabotaged . | . . . . . . . Garrisons Compromised . | . . . . . . . Overloaded Fab Kills . | . . . . . . . Fab Network Shutdowns . | . . . . . . . Hacking | -11 -10 -9 -9 -8 -7 -6 --------- Run | Scr Mat Mat Min Mat Fac Fac Machines Accessed 6 | . 1 . . 2 3 . Terminals 5 | . 1 . . 1 3 . Fabricators . | . . . . . . . Repair Stations . | . . . . . . . Recycling Units . | . . . . . . . Scanalyzers . | . . . . . . . Garrison Access 1 | . . . . 1 . . Total Hacks 15 | . 5 . . 3 7 . Successful 8 | . 2 . . 3 3 . Failed 7 | . 3 . . . 4 . Catastrophic 4 | . 1 . . . 3 . Database Lockouts . | . . . . . . . Manual 5 | . . . . 1 4 . Terminals 14 | . 5 . . 2 7 . Fabricators . | . . . . . . . Repair Stations . | . . . . . . . Recycling Units . | . . . . . . . Scanalyzers . | . . . . . . . Garrison Access 1 | . . . . 1 . . Terminal Hacks 7 | . 2 . . 2 3 . Record 1 | . . . . . 1 . Robot Analysis 1 | . . . . . 1 . Level Access Points 2 | . . . . 1 1 . Locate Traps 1 | . 1 . . . . . Reprogram Traps 1 | . 1 . . . . . Reinforcement Status 1 | . . . . 1 . . Fabricator Hacks . | . . . . . . . Repair Station Hacks . | . . . . . . . Recycling Unit Hacks . | . . . . . . . Scanalyzer . | . . . . . . . Garrison Access Hacks 1 | . . . . 1 . . Seal Access 1 | . . . . 1 . . Unauthorized Hacks . | . . . . . . . Terminals . | . . . . . . . Fabricators . | . . . . . . . Repair Stations . | . . . . . . . Recycling Units . | . . . . . . . Scanalyzers . | . . . . . . . Garrison Access . | . . . . . . . Data Cores Recovered . | . . . . . . . Used . | . . . . . . . Hacking Detections 2 | . 1 . . . 1 . Full Trace Events 2 | . 1 . . . 1 . Feedback Events . | . . . . . . . Feedback Blocked . | . . . . . . . Robot Schematics Acquired . | . . . . . . . Robots Built . | . . . . . . . Matter . | . . . . . . . Time . | . . . . . . . Total Robot Build Rating . | . . . . . . . Part Schematics Acquired . | . . . . . . . Parts Built . | . . . . . . . Matter . | . . . . . . . Time . | . . . . . . . Total Part Build Rating . | . . . . . . . Parts Repaired . | . . . . . . . Time . | . . . . . . . Parts Recycled . | . . . . . . . Recycled Matter . | . . . . . . . Retrieved Matter . | . . . . . . . Retrieved Components . | . . . . . . . Parts Scanalyzed . | . . . . . . . Part Schematics Acquired . | . . . . . . . Parts Damaged . | . . . . . . . Bothacking | -11 -10 -9 -9 -8 -7 -6 ------------ Run | Scr Mat Mat Min Mat Fac Fac Used RIF Installer . | . . . . . . . Robots Hacked . | . . . . . . . Non-combat . | . . . . . . . Combat . | . . . . . . . Robot Hacks Applied . | . . . . . . . Relay Couplers Released . | . . . . . . . Robots Rewired . | . . . . . . . Allies Hacked . | . . . . . . . Hacks Repelled . | . . . . . . . Allies | -11 -10 -9 -9 -8 -7 -6 -------- Run | Scr Mat Mat Min Mat Fac Fac Total Allies 3 | . . . . . 3 . Largest Group 3 | . . . . . 3 . Highest-Rated Group 93 | . . . . . 93 . Highest-Rated Ally 31 | . . . . . 31 . Total Orders . | . . . . . . . Ally Attacks 44 | . . . . . 44 . Total Damage 823 | . . . . . 823 . Kills 6 | . . . . . 6 . Allies Corrupted . | . . . . . . . Allies Melted . | . . . . . . . Intel | -11 -10 -9 -9 -8 -7 -6 ------- Run | Scr Mat Mat Min Mat Fac Fac Robot Analysis Total 1 | . . . . . 1 . Derelict Logs Recovered . | . . . . . . . Drone Launches . | . . . . . . . Drone Recoveries . | . . . . . . . Exploration | -11 -10 -9 -9 -8 -7 -6 ------------- Run | Scr Mat Mat Min Mat Fac Fac Turns Passed 894 | 7 264 32 43 39 322 187 Spaces Moved 1309 | 18 211 80 108 96 505 291 Core 240 | . . . . . 149 91 Treads . | . . . . . . . Legs . | . . . . . . . Wheels . | . . . . . . . Hover . | . . . . . . . Flight 1069 | 18 211 80 108 96 356 200 Fastest Speed 37 | 37 40 40 40 40 40 40 Average Speed 58 | 37 96 40 40 40 57 51 Slowest Speed 200 | 37 200 40 40 40 100 150 Overloaded Moves . | . . . . . . . Propulsion Burnouts . | . . . . . . . Robots Hopped 13 | . 10 1 . 1 1 . Cave-ins Triggered . | . . . . . . . Exploration Rate (%) 19 | 3 36 17 35 14 18 11 Regions Visited 6 Branch Regions 1 Pre-discovered Areas . | . . . . . . . Known Exits Taken 2 | . . . . 1 1 . Unknown Exits Taken 4 | 1 1 1 1 . . . Scrap Searched . | . . . . . . . Spaces Dug . | . . . . . . . Terrain Destroyed 116 | . 116 . . . . . Melee . | . . . . . . . Projectile . | . . . . . . . AOE 116 | . 116 . . . . . Actions | -11 -10 -9 -9 -8 -7 -6 --------- Run | Scr Mat Mat Min Mat Fac Fac Total 1390 | 17 236 78 107 94 533 325 Wait 23 | . 6 . . . 17 . Move 1277 | 17 190 77 107 93 502 291 Hop 13 | . 10 1 . 1 1 . Pick Up 1 | . . . . . 1 . Fast Attach . | . . . . . . . Attach 1 | . . . . . 1 . Detach . | . . . . . . . Swap . | . . . . . . . Drop 1 | . . . . . . 1 Fire 17 | . 17 . . . . . Melee . | . . . . . . . Ram 46 | . 13 . . . . 33 Kick . | . . . . . . . Crush . | . . . . . . . Escape Stasis 11 | . . . . . 11 . Rewire . | . . . . . . . Trap . | . . . . . . . Miscellaneous . | . . . . . . . Route ------- -11/Scrapyard -10/Materials -9/Materials -9/Mines -8/Materials (discovered 3 exits: *Fac x3) -7/Factory (discovered 4 exits: *Fac x4) -6/Factory History --------- Turn | Location | Event 3 | -11/Scrapyard | Discovered new exit (range 15) 8 | -11/Scrapyard | Entered Materials 237 | -10/Materials | Core integrity fell below 50% 260 | -10/Materials | Core integrity fell below 20% 270 | -10/Materials | Discovered new exit (range 6) 272 | -10/Materials | Entered another Materials area 272 | -9/Materials | Evolved 2 slots: Utility x2 282 | -9/Materials | Lost 3 parts (1n2w) 301 | -9/Materials | Discovered new exit (range 10) 304 | -9/Materials | Entered Mines 305 | -9/Mines | Build established: Mutant 346 | -9/Mines | Discovered new exit (range 4) 347 | -9/Mines | Entered Materials 347 | -8/Materials | Evolved 2 slots: Utility x2 351 | -8/Materials | Identified exit to Factory 386 | -8/Materials | Entered Factory 386 | -7/Factory | Evolved 2 slots: Power x1, Propulsion x1 453 | -7/Factory | Identified exit to Factory 538 | -7/Factory | Allied Derelicts emerged from ambush trap array 614 | -7/Factory | P-60 Hacker assimilated allied ND-RMB(g) 708 | -7/Factory | Entered another Factory area 708 | -6/Factory | Evolved 2 slots: Utility x2 842 | -6/Factory | Core integrity fell below 50% 876 | -6/Factory | Core integrity fell below 20% 895 | -6/Factory | Destroyed by S-27 Virus with Autogun Last Messages --------------- 00851_ Slammed into S-27 Virus. 00854_ K-01 Serf collects debris. 00855_ Slammed into S-27 Virus. 00855_ K-01 Serf destroyed. 00856_ Slammed into S-27 Virus. 00856_ S-27 Virus destroyed. 00857_ K-01 Serf cleans the Nuclear Reactor. [You open your loot box...] [Congratulations on your very own Adv. Actuator Array!] 00860_ K-01 Serf collects debris. 00873_ Slammed into S-27 Virus. 00875_ Destabilizing: Core damaged (-8). 00876_ Slammed into S-27 Virus. 00884_ Destabilizing: System corrupted (+2). 00885_ Slammed into S-27 Virus. 00890_ Dropped Adv. Actuator Array. 00891_ Slammed into S-27 Virus. 00893_ Destabilizing: Core damaged (-25). 00893_ R-10 Processor collects Adv. Actuator Array. 00894_ Slammed into S-27 Virus. Map ----- +----------------------------------------------------+ | ?????????????????????????????????????????? """" | | ?????????????????????????????????????????? """" | | ?????????????????????????????????????????# | | ?????????????????????????????????????????" | | ????????????????????????????????????????? | | ?????????????????????????????????????????" | | ?????????????????????????????????????????# | | ???????????????????????????########??????# """ "" | | ???????????????????????????? #??????# """ "" | | ???????????????????????????? #??????# """ "" | | ????????????????????????????? #??##### | | ????????????????????????????? #??# """ "" | | ?????????????????????????????? #??# """ "" | | ?????????????????????????????? ???# """ "" | | ?????????????????????##########+#????# % | | ?????????????????# +%#????# %%% | | ?????????????????? """ """ #%#????#%%%%%#####+# | | ??????????????????? """ """ #%###### % #??? | | ??????????????????? """ """ #%% #??? | | ?????????????????# #% % #??? | | ?????????????????# """ """ + % #???"" | | ?????????????????# """ """ #u #??""" | | ?????????????????# """ """ %R #??""" | | ?????????????????# %########## ###?? | | ?????????????????# % #????????# #??????? | | ?????????????????# @ % #????????# #??????? | | ?????????????????# s % #????????# #??????? | | ?????????????????####+#########????????# #??????? | | ???????????????????????????????????????# #???????? | | ???????????????????????????????????????? ????????? | | ???????????????????????????????????????? ????????? | | ???????????????????????????????????????? ????????? | | ?????????????????????????????????????????????????? | | ?????????????????????????????????????????????????? | | ?????????????????????????????????????????????????? | | ?????????????????????????????????????????????????? | | ?????????????????????????????????????????????????? | | ?????????????????????????????????????????????????? | | ?????????????????????????????????????????????????? | | ?????????????????????????????????????????????????? | | ?????????????????????????????????????????????????? | | ?????????????????????????????????????????????????? | | ?????????????????????????????????????????????????? | | ?????????????????????????????????????????????????? | | ?????????????????????????????????????????????????? | | ?????????????????????????????????????????????????? | | ?????????????????????????????????????????????????? | | ?????????????????????????????????????????????????? | | ?????????????????????????????????????????????????? | | ?????????????????????????????????????????????????? | +----------------------------------------------------+ Best States ------------- Heat Dissipation 37 Energy Generation 10 Energy Capacity 125 Matter Stores 310 Matter Capacity 500 Sight Range 16 Terrain Scan Density 10 Additional Mass Support 6 Evasion (%) 62 Item Schematics ----------------- None Robot Schematics ------------------ None Fabricated ------------ Nothing Alien Tech Used ----------------- None Achievements -------------- Fist Fight Oops Challenges ------------ None Cogshop Purchases (9) ----------------------- VTOL Module (1049) VTOL Module (1049) Rocket Launcher (1049) Rocket Launcher (1049) Lgt. Ion Engine (599) Hcp. Matter Pod (521) Weight Redist. System (625) Nuclear Pulse Thruster (1529) Adv. Actuator Array (Loot Box) Game ------ Seed SpikedGhostGenerator Manual? 0 Play Time 00:18:02 Cumulative 16.0 hours Start 2020.06.11 @ 09:45:33 End 2020.06.11 @ 10:01:54 Sessions 1 Manual Loads 0 Difficulty Rogue Special Mode AFD2019/Pay2Buy Game No. 21 Rogue 21 Adventurer 0 Explorer 0 Win Type - Total 0 Types 0/0/0/0/0/0/0 Lore% 18 Gallery% 19 Achievement% 16 Wizard Run 0 Options --------- ASCII 0 Keyboard 0 Movement Numpad Keybinds 0 Fullscreen 1 Font 12/Smallcaps Map View 83x54 Tactical HUD 1 Map Filters NONE Filters NONE Steam 1 RUN: 295ec65b-3521-4b5b-a188-bb5ab80903c5